[Event "Titled Tuesday Blitz April 18 Late 2023"]
[White "Garrido, Denis"]
[Black "Loiacono, Antonio"]
[WhiteFideId "601217"]
[BlackFideId "895415"]
[WhiteElo "2318"]
[BlackElo "2257"]
[Result "1/2-1/2"]
[Round "03"]
[TimeControl "180+2"]
[Date "2023.04.18"]
[WhiteClock "0:00:19"]
[BlackClock "0:00:07"]

1. d4 {[%clk 0:03:00]}  Nf6 {[%clk 0:02:57]} 2. c4 {[%clk 0:03:00]}  c5 {[%clk 0:02:57]} 3. d5 {[%clk 0:02:59]}  b5 {[%clk 0:02:57]} 4. Qc2 {[%clk 0:02:53]}  bxc4 {[%clk 0:02:56]} 5. e4 {[%clk 0:02:53]}  d6 {[%clk 0:02:54]} 6. Nf3 {[%clk 0:02:52]}  g6 {[%clk 0:02:54]} 7. Bxc4 {[%clk 0:02:49]}  Bg7 {[%clk 0:02:55]} 8. O-O {[%clk 0:02:49]}  O-O {[%clk 0:02:55]} 9. Re1 {[%clk 0:02:47]}  Nfd7 {[%clk 0:02:51]} 10. Nc3 {[%clk 0:02:43]}  Na6 {[%clk 0:02:33]} 11. Bf4 {[%clk 0:02:39]}  Nb4 {[%clk 0:02:31]} 12. Qd2 {[%clk 0:02:39]}  Nb6 {[%clk 0:02:25]} 13. Bf1 {[%clk 0:02:37]}  Bg4 {[%clk 0:02:18]} 14. a3 {[%clk 0:02:25]}  Bxf3 {[%clk 0:02:05]} 15. gxf3 {[%clk 0:02:26]}  a5 {[%clk 0:01:50]} 16. axb4 {[%clk 0:02:24]}  axb4 {[%clk 0:01:51]} 17. Nb5 {[%clk 0:02:22]}  Qd7 {[%clk 0:01:45]} 18. Bh6 {[%clk 0:01:41]}  Rfb8 {[%clk 0:01:22]} 19. Bxg7 {[%clk 0:01:40]}  Kxg7 {[%clk 0:01:23]} 20. b3 {[%clk 0:01:39]}  f6 {[%clk 0:01:18]} 21. Bc4 {[%clk 0:01:27]}  Nc8 {[%clk 0:01:04]} 22. Qe2 {[%clk 0:01:18]}  Kf7 {[%clk 0:00:58]} 23. f4 {[%clk 0:01:15]}  Nb6 {[%clk 0:00:41]} 24. e5 {[%clk 0:01:07]}  dxe5 {[%clk 0:00:29]} 25. fxe5 {[%clk 0:01:06]}  Kf8 {[%clk 0:00:25]} 26. Qe3 {[%clk 0:00:42]}  Rxa1 {[%clk 0:00:20]} 27. Qh6+ {[%clk 0:00:40]}  Kg8 {[%clk 0:00:19]} 28. Rxa1 {[%clk 0:00:37]}  Nxc4 {[%clk 0:00:17]} 29. bxc4 {[%clk 0:00:37]}  Qg4+ {[%clk 0:00:17]} 30. Kf1 {[%clk 0:00:35]}  Qxc4+ {[%clk 0:00:17]} 31. Kg2 {[%clk 0:00:34]}  Qxd5+ {[%clk 0:00:17]} 32. Kg1 {[%clk 0:00:34]}  Qxe5 {[%clk 0:00:14]} 33. Rd1 {[%clk 0:00:25]}  Rxb5 {[%clk 0:00:11]} 34. Rd8+ {[%clk 0:00:25]}  Kf7 {[%clk 0:00:12]} 35. Rf8+ {[%clk 0:00:24]}  Ke6 {[%clk 0:00:12]} 36. Qh3+ {[%clk 0:00:24]}  Qf5 {[%clk 0:00:12]} 37. Qe3+ {[%clk 0:00:21]}  Qe5 {[%clk 0:00:11]} 38. Qb3+ {[%clk 0:00:20]}  Qd5 {[%clk 0:00:11]} 39. Qh3+ {[%clk 0:00:20]}  f5 {[%clk 0:00:10]} 40. Qe3+ {[%clk 0:00:20]}  Qe5 {[%clk 0:00:10]} 41. Qb3+ {[%clk 0:00:20]}  c4 {[%clk 0:00:10]} 42. Qxc4+ {[%clk 0:00:20]}  Rd5 {[%clk 0:00:11]} 43. Qc8+ {[%clk 0:00:19]}  Rd7 {[%clk 0:00:09]} 44. Qc4+ {[%clk 0:00:19]}  Qd5 {[%clk 0:00:10]} 45. Qe2+ {[%clk 0:00:19]}  Qe4 {[%clk 0:00:09]} 46. Qa6+ {[%clk 0:00:19]}  Rd6 {[%clk 0:00:09]} 47. Qa2+ {[%clk 0:00:20]}  Qd5 {[%clk 0:00:08]} 48. Qe2+ {[%clk 0:00:20]}  Qe4 {[%clk 0:00:08]} 49. Qa2+ {[%clk 0:00:21]}  Ke5 {[%clk 0:00:08]} 50. Qa5+ {[%clk 0:00:20]}  Ke6 {[%clk 0:00:07]} 51. Qa2+ {[%clk 0:00:19]} 1/2-1/2


[Site "https://www.chess.com"]

[Event "Titled Tuesday Blitz April 18 Late 2023"]
[White "Perske, Thore"]
[Black "sebastianmarinp"]
[WhiteFideId "12902195"]
[WhiteElo "2336"]
[BlackElo "2303"]
[Result "1-0"]
[Round "03"]
[TimeControl "180+2"]
[Date "2023.04.18"]
[WhiteClock "0:00:09"]
[BlackClock "0:00:02"]

1. d4 {[%clk 0:02:59]}  Nf6 {[%clk 0:02:59]} 2. g3 {[%clk 0:02:59]}  d5 {[%clk 0:02:57]} 3. Bg2 {[%clk 0:03:00]}  c6 {[%clk 0:02:57]} 4. Nf3 {[%clk 0:03:00]}  Bf5 {[%clk 0:02:56]} 5. c4 {[%clk 0:03:00]}  e6 {[%clk 0:02:55]} 6. Nc3 {[%clk 0:03:01]}  dxc4 {[%clk 0:02:49]} 7. Ne5 {[%clk 0:02:55]}  Nbd7 {[%clk 0:02:45]} 8. Nxc4 {[%clk 0:02:53]}  Bb4 {[%clk 0:02:40]} 9. O-O {[%clk 0:02:52]}  O-O {[%clk 0:02:39]} 10. e4 {[%clk 0:02:39]}  Bg6 {[%clk 0:02:32]} 11. Qe2 {[%clk 0:02:33]}  Nb6 {[%clk 0:02:27]} 12. Nxb6 {[%clk 0:02:27]}  axb6 {[%clk 0:02:27]} 13. Rd1 {[%clk 0:02:24]}  b5 {[%clk 0:02:08]} 14. a3 {[%clk 0:02:17]}  Ba5 {[%clk 0:01:54]} 15. Bg5 {[%clk 0:02:08]}  h6 {[%clk 0:01:51]} 16. Bf4 {[%clk 0:02:03]}  Qe7 {[%clk 0:01:38]} 17. Rac1 {[%clk 0:01:57]}  b4 {[%clk 0:01:35]} 18. axb4 {[%clk 0:01:50]}  Bxb4 {[%clk 0:01:36]} 19. Bf3 {[%clk 0:01:44]}  Rfd8 {[%clk 0:01:33]} 20. h4 {[%clk 0:01:43]}  Ba5 {[%clk 0:01:10]} 21. h5 {[%clk 0:01:41]}  Bh7 {[%clk 0:01:10]} 22. Kg2 {[%clk 0:01:39]}  Bc7 {[%clk 0:01:07]} 23. Be3 {[%clk 0:01:20]}  Ba5 {[%clk 0:00:52]} 24. Bf4 {[%clk 0:00:58]}  Bc7 {[%clk 0:00:50]} 25. Bxc7 {[%clk 0:00:53]}  Qxc7 {[%clk 0:00:51]} 26. e5 {[%clk 0:00:50]}  Nd5 {[%clk 0:00:40]} 27. Bxd5 {[%clk 0:00:43]}  exd5 {[%clk 0:00:41]} 28. Nb5 {[%clk 0:00:41]}  Qe7 {[%clk 0:00:34]} 29. Nc3 {[%clk 0:00:35]}  Bf5 {[%clk 0:00:21]} 30. Qe3 {[%clk 0:00:29]}  Bg4 {[%clk 0:00:20]} 31. f3 {[%clk 0:00:27]}  Bxh5 {[%clk 0:00:20]} 32. Rh1 {[%clk 0:00:27]}  Bg6 {[%clk 0:00:20]} 33. Ne2 {[%clk 0:00:27]}  f6 {[%clk 0:00:19]} 34. Nf4 {[%clk 0:00:27]}  Bf7 {[%clk 0:00:18]} 35. e6 {[%clk 0:00:27]}  Be8 {[%clk 0:00:18]} 36. Rh3 {[%clk 0:00:22]}  Ra2 {[%clk 0:00:16]} 37. Qe2 {[%clk 0:00:19]}  Qb4 {[%clk 0:00:14]} 38. Rc2 {[%clk 0:00:19]}  Qxd4 {[%clk 0:00:14]} 39. e7 {[%clk 0:00:19]}  Rd6 {[%clk 0:00:12]} 40. Rh4 {[%clk 0:00:12]}  Qe5 {[%clk 0:00:11]} 41. Qf2 {[%clk 0:00:09]}  Qxe7 {[%clk 0:00:10]} 42. Re2 {[%clk 0:00:09]}  Qf8 {[%clk 0:00:10]} 43. Rg4 {[%clk 0:00:09]}  Kh7 {[%clk 0:00:07]} 44. Ne6 {[%clk 0:00:10]}  Rxe6 {[%clk 0:00:05]} 45. Rxe6 {[%clk 0:00:10]}  Bd7 {[%clk 0:00:05]} 46. Re2 {[%clk 0:00:09]}  Bxg4 {[%clk 0:00:05]} 47. fxg4 {[%clk 0:00:10]}  Qf7 {[%clk 0:00:05]} 48. Qf5+ {[%clk 0:00:10]}  Qg6 {[%clk 0:00:06]} 49. Qc8 {[%clk 0:00:09]}  Qd3 {[%clk 0:00:04]} 50. Re8 {[%clk 0:00:09]}  Rxb2+ {[%clk 0:00:04]} 51. Kh3 {[%clk 0:00:09]}  Qc2 {[%clk 0:00:01]} 52. Rh8+ {[%clk 0:00:09]}  Kg6 {[%clk 0:00:02]} 53. Qe8+ {[%clk 0:00:08]}  Kg5 {[%clk 0:00:02]} 54. Qh5# {[%clk 0:00:09]} 1-0


[Site "https://www.chess.com"]

[Event "Titled Tuesday Blitz April 18 Late 2023"]
[White "Garmash, Aliona"]
[Black "Bayramov, Zaur"]
[WhiteFideId "34127620"]
[BlackFideId "13405080"]
[WhiteElo "1959"]
[BlackElo "2195"]
[Result "0-1"]
[Round "03"]
[TimeControl "180+2"]
[Date "2023.04.18"]
[WhiteClock "0:00:10"]
[BlackClock "0:01:49"]

1. d4 {[%clk 0:03:00]}  Nf6 {[%clk 0:02:59]} 2. c4 {[%clk 0:03:00]}  c5 {[%clk 0:02:59]} 3. d5 {[%clk 0:03:00]}  e6 {[%clk 0:03:00]} 4. Nc3 {[%clk 0:02:59]}  exd5 {[%clk 0:03:00]} 5. cxd5 {[%clk 0:03:00]}  d6 {[%clk 0:03:01]} 6. Nf3 {[%clk 0:03:00]}  g6 {[%clk 0:03:01]} 7. Bf4 {[%clk 0:03:00]}  a6 {[%clk 0:03:02]} 8. a4 {[%clk 0:03:00]}  Bg7 {[%clk 0:03:02]} 9. h3 {[%clk 0:03:00]}  O-O {[%clk 0:03:01]} 10. e3 {[%clk 0:03:01]}  Nh5 {[%clk 0:03:01]} 11. Bh2 {[%clk 0:02:56]}  f5 {[%clk 0:03:01]} 12. Be2 {[%clk 0:02:45]}  f4 {[%clk 0:03:01]} 13. e4 {[%clk 0:02:42]}  Nd7 {[%clk 0:03:00]} 14. Nd2 {[%clk 0:02:34]}  Ne5 {[%clk 0:02:54]} 15. Bxh5 {[%clk 0:02:22]}  gxh5 {[%clk 0:02:53]} 16. O-O {[%clk 0:02:15]}  f3 {[%clk 0:02:30]} 17. Nxf3 {[%clk 0:01:33]}  Nxf3+ {[%clk 0:02:15]} 18. gxf3 {[%clk 0:01:33]}  Bxh3 {[%clk 0:02:16]} 19. f4 {[%clk 0:01:16]}  Bxf1 {[%clk 0:02:08]} 20. Qxf1 {[%clk 0:01:11]}  Qh4 {[%clk 0:02:02]} 21. Bg3 {[%clk 0:01:09]}  Qg4 {[%clk 0:02:02]} 22. Qe2 {[%clk 0:00:30]}  Rxf4 {[%clk 0:01:58]} 23. Qxg4 {[%clk 0:00:17]}  Rxg4 {[%clk 0:01:59]} 24. Kh1 {[%clk 0:00:18]}  Rxg3 {[%clk 0:01:56]} 25. fxg3 {[%clk 0:00:17]}  Be5 {[%clk 0:01:57]} 26. Kg2 {[%clk 0:00:17]}  Kf7 {[%clk 0:01:55]} 27. Rf1+ {[%clk 0:00:17]}  Ke7 {[%clk 0:01:55]} 28. Rh1 {[%clk 0:00:17]}  Rg8 {[%clk 0:01:55]} 29. Rxh5 {[%clk 0:00:17]}  Rxg3+ {[%clk 0:01:55]} 30. Kf2 {[%clk 0:00:16]}  Rg7 {[%clk 0:01:53]} 31. Nd1 {[%clk 0:00:14]}  b5 {[%clk 0:01:52]} 32. axb5 {[%clk 0:00:14]}  axb5 {[%clk 0:01:52]} 33. b3 {[%clk 0:00:14]}  c4 {[%clk 0:01:52]} 34. bxc4 {[%clk 0:00:14]}  bxc4 {[%clk 0:01:53]} 35. Ke2 {[%clk 0:00:15]}  c3 {[%clk 0:01:49]} 36. Kd3 {[%clk 0:00:14]}  Rg3+ {[%clk 0:01:49]} 37. Kc2 {[%clk 0:00:13]}  Rg2+ {[%clk 0:01:50]} 38. Kb3 {[%clk 0:00:10]}  c2 {[%clk 0:01:50]} 39. Rxh7+ {[%clk 0:00:10]}  Kd8 {[%clk 0:01:49]} 0-1


[Site "https://www.chess.com"]

[Event "Titled Tuesday Blitz April 18 Late 2023"]
[White "Zarnicki, Pablo"]
[Black "Georg, Heinz"]
[WhiteFideId "100137"]
[BlackFideId "4607295"]
[WhiteElo "2468"]
[BlackElo "2271"]
[Result "1-0"]
[Round "03"]
[TimeControl "180+2"]
[Date "2023.04.18"]
[WhiteClock "0:02:00"]
[BlackClock "0:01:50"]

1. e4 {[%clk 0:03:00]}  d6 {[%clk 0:02:59]} 2. d4 {[%clk 0:02:58]}  Nf6 {[%clk 0:02:59]} 3. Nc3 {[%clk 0:02:55]}  g6 {[%clk 0:03:00]} 4. Be3 {[%clk 0:02:53]}  c6 {[%clk 0:02:59]} 5. h3 {[%clk 0:02:51]}  Nbd7 {[%clk 0:02:49]} 6. Nf3 {[%clk 0:02:51]}  Qc7 {[%clk 0:02:48]} 7. a4 {[%clk 0:02:50]}  a5 {[%clk 0:02:46]} 8. Bc4 {[%clk 0:02:50]}  Bg7 {[%clk 0:02:44]} 9. O-O {[%clk 0:02:49]}  O-O {[%clk 0:02:43]} 10. Qe2 {[%clk 0:02:47]}  e5 {[%clk 0:02:43]} 11. dxe5 {[%clk 0:02:47]}  dxe5 {[%clk 0:02:44]} 12. Rfd1 {[%clk 0:02:46]}  Re8 {[%clk 0:02:41]} 13. Ng5 {[%clk 0:02:45]}  Re7 {[%clk 0:02:38]} 14. Ba2 {[%clk 0:02:44]}  h6 {[%clk 0:02:36]} 15. Nxf7 {[%clk 0:02:25]}  Rxf7 {[%clk 0:02:37]} 16. Qc4 {[%clk 0:02:24]}  Nf8 {[%clk 0:02:34]} 17. Nb5 {[%clk 0:02:21]}  Qe7 {[%clk 0:02:15]} 18. Qxf7+ {[%clk 0:02:12]}  Qxf7 {[%clk 0:02:14]} 19. Bxf7+ {[%clk 0:02:12]}  Kxf7 {[%clk 0:02:15]} 20. Nc7 {[%clk 0:02:12]}  Rb8 {[%clk 0:01:56]} 21. Ba7 {[%clk 0:02:08]}  N8d7 {[%clk 0:01:49]} 22. Bxb8 {[%clk 0:02:02]}  Nxb8 {[%clk 0:01:50]} 23. Rd8 {[%clk 0:02:00]} 1-0


[Site "https://www.chess.com"]

[Event "Titled Tuesday Blitz April 18 Late 2023"]
[White "Da Silva Junior, Sediney Mari"]
[Black "Moral Garcia, Serafin"]
[WhiteFideId "2132079"]
[BlackFideId "2201925"]
[WhiteElo "1977"]
[BlackElo "2274"]
[Result "1-0"]
[Round "03"]
[TimeControl "180+2"]
[Date "2023.04.18"]
[WhiteClock "0:00:06"]
[BlackClock "0:00:10"]

1. e4 {[%clk 0:03:00]}  c5 {[%clk 0:02:59]} 2. c3 {[%clk 0:03:01]}  Nf6 {[%clk 0:02:59]} 3. e5 {[%clk 0:03:00]}  Nd5 {[%clk 0:02:59]} 4. d4 {[%clk 0:03:00]}  e6 {[%clk 0:02:55]} 5. Nf3 {[%clk 0:03:00]}  d6 {[%clk 0:02:54]} 6. Bc4 {[%clk 0:02:55]}  Nc6 {[%clk 0:02:52]} 7. O-O {[%clk 0:02:44]}  cxd4 {[%clk 0:02:51]} 8. cxd4 {[%clk 0:02:44]}  Be7 {[%clk 0:02:50]} 9. exd6 {[%clk 0:02:42]}  Qxd6 {[%clk 0:02:49]} 10. Nc3 {[%clk 0:02:43]}  Nxc3 {[%clk 0:02:45]} 11. bxc3 {[%clk 0:02:43]}  O-O {[%clk 0:02:45]} 12. Re1 {[%clk 0:02:40]}  b6 {[%clk 0:02:44]} 13. Ng5 {[%clk 0:02:39]}  Bxg5 {[%clk 0:02:26]} 14. Bxg5 {[%clk 0:02:38]}  Bb7 {[%clk 0:02:25]} 15. Qg4 {[%clk 0:02:36]}  Kh8 {[%clk 0:02:18]} 16. Rab1 {[%clk 0:02:36]}  Rac8 {[%clk 0:02:13]} 17. Bf4 {[%clk 0:02:34]}  Qd7 {[%clk 0:02:06]} 18. d5 {[%clk 0:02:24]}  Na5 {[%clk 0:02:05]} 19. dxe6 {[%clk 0:02:24]}  Qc6 {[%clk 0:01:33]} 20. Bb5 {[%clk 0:02:03]}  f5 {[%clk 0:01:15]} 21. e7 {[%clk 0:01:37]}  fxg4 {[%clk 0:00:46]} 22. exf8=Q+ {[%clk 0:01:37]}  Rxf8 {[%clk 0:00:45]} 23. Bxc6 {[%clk 0:01:37]}  Bxc6 {[%clk 0:00:46]} 24. Bg3 {[%clk 0:01:33]}  h5 {[%clk 0:00:44]} 25. Re5 {[%clk 0:01:28]}  g6 {[%clk 0:00:43]} 26. Re6 {[%clk 0:01:26]}  Kg7 {[%clk 0:00:41]} 27. Rbe1 {[%clk 0:01:16]}  Rf7 {[%clk 0:00:38]} 28. Be5+ {[%clk 0:01:14]}  Kh7 {[%clk 0:00:35]} 29. Bb8 {[%clk 0:01:14]}  Bd5 {[%clk 0:00:29]} 30. Re7 {[%clk 0:01:13]}  Nc6 {[%clk 0:00:23]} 31. Rxf7+ {[%clk 0:01:07]}  Bxf7 {[%clk 0:00:23]} 32. Bxa7 {[%clk 0:01:07]}  Bxa2 {[%clk 0:00:22]} 33. Bxb6 {[%clk 0:01:07]}  Kg7 {[%clk 0:00:23]} 34. Ra1 {[%clk 0:01:06]}  Bd5 {[%clk 0:00:22]} 35. Rd1 {[%clk 0:01:05]}  Bf7 {[%clk 0:00:22]} 36. Rd7 {[%clk 0:01:02]}  Kf6 {[%clk 0:00:21]} 37. Bd4+ {[%clk 0:01:02]}  Ke6 {[%clk 0:00:20]} 38. Rb7 {[%clk 0:00:59]}  Ne7 {[%clk 0:00:20]} 39. Rb6+ {[%clk 0:00:54]}  Kd7 {[%clk 0:00:20]} 40. Rf6 {[%clk 0:00:53]}  Ke8 {[%clk 0:00:19]} 41. Kf1 {[%clk 0:00:51]}  Nd5 {[%clk 0:00:19]} 42. Rd6 {[%clk 0:00:48]}  Nf4 {[%clk 0:00:19]} 43. g3 {[%clk 0:00:44]}  Ne6 {[%clk 0:00:17]} 44. Ke2 {[%clk 0:00:43]}  Ke7 {[%clk 0:00:17]} 45. Rb6 {[%clk 0:00:42]}  Kd7 {[%clk 0:00:17]} 46. Kd3 {[%clk 0:00:41]}  Be8 {[%clk 0:00:17]} 47. Ke4 {[%clk 0:00:39]}  Ng5+ {[%clk 0:00:17]} 48. Ke5 {[%clk 0:00:39]}  Nf3+ {[%clk 0:00:17]} 49. Kf6 {[%clk 0:00:39]}  Nxh2 {[%clk 0:00:18]} 50. Rb7+ {[%clk 0:00:38]}  Kd8 {[%clk 0:00:18]} 51. Rb8+ {[%clk 0:00:36]}  Kd7 {[%clk 0:00:18]} 52. Rxe8 {[%clk 0:00:36]}  Kxe8 {[%clk 0:00:18]} 53. Kxg6 {[%clk 0:00:37]}  Kd7 {[%clk 0:00:16]} 54. Kxh5 {[%clk 0:00:37]}  Ke6 {[%clk 0:00:16]} 55. c4 {[%clk 0:00:36]}  Kd6 {[%clk 0:00:16]} 56. c5+ {[%clk 0:00:35]}  Kd5 {[%clk 0:00:16]} 57. Be3 {[%clk 0:00:36]}  Kc6 {[%clk 0:00:17]} 58. Kg5 {[%clk 0:00:36]}  Kd5 {[%clk 0:00:17]} 59. Kf4 {[%clk 0:00:35]}  Kc6 {[%clk 0:00:17]} 60. Ke5 {[%clk 0:00:35]}  Nf3+ {[%clk 0:00:16]} 61. Kf4 {[%clk 0:00:34]}  Nh2 {[%clk 0:00:17]} 62. Ke4 {[%clk 0:00:30]}  Nf3 {[%clk 0:00:16]} 63. Bd4 {[%clk 0:00:15]}  Nh2 {[%clk 0:00:16]} 64. f4 {[%clk 0:00:12]}  gxf3 {[%clk 0:00:16]} 65. Kf5 {[%clk 0:00:10]}  Kd5 {[%clk 0:00:15]} 66. Bg1 {[%clk 0:00:09]}  Nf1 {[%clk 0:00:14]} 67. Kf4 {[%clk 0:00:07]}  Nd2 {[%clk 0:00:14]} 68. g4 {[%clk 0:00:08]}  Ne4 {[%clk 0:00:09]} 69. Kxf3 {[%clk 0:00:07]}  Ng5+ {[%clk 0:00:08]} 70. Kf4 {[%clk 0:00:07]}  Ne6+ {[%clk 0:00:09]} 71. Kf5 {[%clk 0:00:08]}  Nf8 {[%clk 0:00:09]} 72. Kf6 {[%clk 0:00:07]}  Kc6 {[%clk 0:00:08]} 73. g5 {[%clk 0:00:05]}  Nh7+ {[%clk 0:00:08]} 74. Kg6 {[%clk 0:00:05]}  Nxg5 {[%clk 0:00:09]} 75. Kxg5 {[%clk 0:00:05]}  Kd5 {[%clk 0:00:09]} 76. Kf5 {[%clk 0:00:06]}  Kc6 {[%clk 0:00:10]} 77. Ke6 {[%clk 0:00:07]}  Kb5 {[%clk 0:00:10]} 78. Kd7 {[%clk 0:00:06]} 1-0


[Site "https://www.chess.com"]

[Event "Titled Tuesday Blitz April 18 Late 2023"]
[White "Osmonbekov, Talaibek"]
[Black "Sanchez Alvares, Kelvin Antonio"]
[WhiteFideId "2017253"]
[BlackFideId "3906680"]
[WhiteElo "2135"]
[BlackElo "2217"]
[Result "1-0"]
[Round "03"]
[TimeControl "180+2"]
[Date "2023.04.18"]
[WhiteClock "0:00:25"]
[BlackClock "0:01:24"]

1. d4 {[%clk 0:03:00]}  d5 {[%clk 0:03:00]} 2. Bf4 {[%clk 0:03:01]}  Nf6 {[%clk 0:03:00]} 3. Nc3 {[%clk 0:03:01]}  a6 {[%clk 0:02:56]} 4. e3 {[%clk 0:03:02]}  c5 {[%clk 0:02:56]} 5. Nf3 {[%clk 0:03:01]}  Nc6 {[%clk 0:02:56]} 6. Ne5 {[%clk 0:03:01]}  Qb6 {[%clk 0:02:54]} 7. Na4 {[%clk 0:02:43]}  Qa5+ {[%clk 0:02:53]} 8. c3 {[%clk 0:02:44]}  cxd4 {[%clk 0:02:53]} 9. exd4 {[%clk 0:02:38]}  e6 {[%clk 0:02:42]} 10. a3 {[%clk 0:02:23]}  Be7 {[%clk 0:02:41]} 11. b4 {[%clk 0:02:20]}  Qd8 {[%clk 0:02:41]} 12. Nxc6 {[%clk 0:02:05]}  bxc6 {[%clk 0:02:40]} 13. Bd3 {[%clk 0:02:02]}  O-O {[%clk 0:02:40]} 14. O-O {[%clk 0:02:00]}  a5 {[%clk 0:02:36]} 15. Nc5 {[%clk 0:01:58]}  Bxc5 {[%clk 0:02:34]} 16. bxc5 {[%clk 0:01:53]}  Ba6 {[%clk 0:02:34]} 17. Rb1 {[%clk 0:01:48]}  Bxd3 {[%clk 0:02:33]} 18. Qxd3 {[%clk 0:01:47]}  Nd7 {[%clk 0:02:33]} 19. Rb7 {[%clk 0:01:41]}  Re8 {[%clk 0:02:33]} 20. Bd6 {[%clk 0:01:21]}  e5 {[%clk 0:02:28]} 21. Qf5 {[%clk 0:01:20]}  Re6 {[%clk 0:02:24]} 22. dxe5 {[%clk 0:01:12]}  g6 {[%clk 0:02:24]} 23. Qf4 {[%clk 0:01:01]}  a4 {[%clk 0:02:17]} 24. Rfb1 {[%clk 0:00:59]}  Qe8 {[%clk 0:02:10]} 25. h4 {[%clk 0:00:56]}  Nxe5 {[%clk 0:02:08]} 26. Rb8 {[%clk 0:00:39]}  Nd3 {[%clk 0:01:41]} 27. Rxe8+ {[%clk 0:00:36]}  Raxe8 {[%clk 0:01:42]} 28. Qg3 {[%clk 0:00:36]}  Ne5 {[%clk 0:01:28]} 29. h5 {[%clk 0:00:34]}  Nc4 {[%clk 0:01:27]} 30. hxg6 {[%clk 0:00:27]}  Rxg6 {[%clk 0:01:26]} 31. Qh4 {[%clk 0:00:26]}  Re4 {[%clk 0:01:25]} 32. Qd8+ {[%clk 0:00:25]}  Kg7 {[%clk 0:01:24]} 33. Bf8+ {[%clk 0:00:25]} 1-0


[Site "https://www.chess.com"]

[Event "Titled Tuesday Blitz April 18 Late 2023"]
[White "Cigan, Jason"]
[Black "Salik, Serkan"]
[WhiteFideId "2064022"]
[BlackFideId "30952492"]
[WhiteElo "2000"]
[BlackElo "2543"]
[Result "1-0"]
[Round "03"]
[TimeControl "180+2"]
[Date "2023.04.18"]
[WhiteClock "0:00:05"]
[BlackClock "0:00:01"]

1. e4 {[%clk 0:03:00]}  e5 {[%clk 0:02:59]} 2. Nf3 {[%clk 0:03:00]}  Nc6 {[%clk 0:03:00]} 3. Bb5 {[%clk 0:03:01]}  a6 {[%clk 0:03:00]} 4. Ba4 {[%clk 0:03:02]}  d6 {[%clk 0:03:00]} 5. c3 {[%clk 0:03:00]}  Bd7 {[%clk 0:03:00]} 6. O-O {[%clk 0:02:59]}  g6 {[%clk 0:02:57]} 7. d4 {[%clk 0:02:58]}  Bg7 {[%clk 0:02:57]} 8. Re1 {[%clk 0:02:58]}  Nf6 {[%clk 0:02:58]} 9. h3 {[%clk 0:02:58]}  O-O {[%clk 0:02:58]} 10. Nbd2 {[%clk 0:02:58]}  Qe7 {[%clk 0:02:33]} 11. a3 {[%clk 0:02:58]}  Rfe8 {[%clk 0:02:30]} 12. Bc2 {[%clk 0:02:57]}  Qf8 {[%clk 0:02:26]} 13. Nf1 {[%clk 0:02:54]}  Bh6 {[%clk 0:02:25]} 14. Ng5 {[%clk 0:02:51]}  Rad8 {[%clk 0:02:19]} 15. Bb3 {[%clk 0:02:40]}  Re7 {[%clk 0:02:15]} 16. Ng3 {[%clk 0:02:31]}  Bc8 {[%clk 0:02:08]} 17. Qf3 {[%clk 0:02:20]}  Bg7 {[%clk 0:02:03]} 18. Be3 {[%clk 0:01:53]}  h6 {[%clk 0:02:02]} 19. Nxf7 {[%clk 0:01:45]}  Rxf7 {[%clk 0:02:01]} 20. Bxf7+ {[%clk 0:01:36]}  Qxf7 {[%clk 0:02:02]} 21. Rad1 {[%clk 0:01:34]}  Rf8 {[%clk 0:02:00]} 22. Qe2 {[%clk 0:01:34]}  g5 {[%clk 0:01:54]} 23. Nf5 {[%clk 0:01:25]}  Nxe4 {[%clk 0:01:42]} 24. Nxg7 {[%clk 0:01:25]}  Qxg7 {[%clk 0:01:42]} 25. dxe5 {[%clk 0:01:21]}  Nxe5 {[%clk 0:01:39]} 26. Bd4 {[%clk 0:01:21]}  Bf5 {[%clk 0:01:22]} 27. Bxe5 {[%clk 0:01:08]}  dxe5 {[%clk 0:01:06]} 28. Qc4+ {[%clk 0:01:06]}  Qf7 {[%clk 0:01:02]} 29. Rxe4 {[%clk 0:01:06]}  Bxe4 {[%clk 0:01:01]} 30. Qxe4 {[%clk 0:01:06]}  Qxf2+ {[%clk 0:01:01]} 31. Kh1 {[%clk 0:01:04]}  Qf5 {[%clk 0:00:46]} 32. Qxb7 {[%clk 0:00:57]}  Rf7 {[%clk 0:00:43]} 33. Qxa6 {[%clk 0:00:51]}  e4 {[%clk 0:00:39]} 34. Qxh6 {[%clk 0:00:45]}  Rf8 {[%clk 0:00:24]} 35. Qc6 {[%clk 0:00:34]}  e3 {[%clk 0:00:20]} 36. Qc4+ {[%clk 0:00:32]}  Rf7 {[%clk 0:00:15]} 37. Qe2 {[%clk 0:00:29]}  Qe4 {[%clk 0:00:11]} 38. Rd4 {[%clk 0:00:16]}  Qe5 {[%clk 0:00:02]} 39. Rd3 {[%clk 0:00:12]}  Rf2 {[%clk 0:00:02]} 40. Qe1 {[%clk 0:00:07]}  e2 {[%clk 0:00:01]} 41. Rd8+ {[%clk 0:00:05]} 1-0


[Site "https://www.chess.com"]

[Event "Titled Tuesday Blitz April 18 Late 2023"]
[White "mestrefeitosa19"]
[Black "Tomaszewski, Kacper"]
[BlackFideId "1127373"]
[WhiteElo "2199"]
[BlackElo "2211"]
[Result "0-1"]
[Round "03"]
[TimeControl "180+2"]
[Date "2023.04.18"]
[WhiteClock "0:00:01"]
[BlackClock "0:00:40"]

1. c4 {[%clk 0:02:53]}  g6 {[%clk 0:02:58]} 2. Nc3 {[%clk 0:02:53]}  Bg7 {[%clk 0:02:59]} 3. d4 {[%clk 0:02:54]}  c5 {[%clk 0:02:58]} 4. Nf3 {[%clk 0:02:53]}  cxd4 {[%clk 0:02:58]} 5. Nxd4 {[%clk 0:02:53]}  Nc6 {[%clk 0:02:59]} 6. e3 {[%clk 0:02:47]}  Nxd4 {[%clk 0:02:57]} 7. exd4 {[%clk 0:02:47]}  d5 {[%clk 0:02:58]} 8. Be2 {[%clk 0:02:47]}  dxc4 {[%clk 0:02:57]} 9. Bxc4 {[%clk 0:02:47]}  Qxd4 {[%clk 0:02:54]} 10. Bb5+ {[%clk 0:01:42]}  Bd7 {[%clk 0:02:46]} 11. Bxd7+ {[%clk 0:01:41]}  Qxd7 {[%clk 0:02:46]} 12. Qxd7+ {[%clk 0:01:41]}  Kxd7 {[%clk 0:02:46]} 13. O-O {[%clk 0:01:41]}  Nf6 {[%clk 0:02:46]} 14. Bg5 {[%clk 0:01:34]}  Rhd8 {[%clk 0:02:42]} 15. Rac1 {[%clk 0:01:27]}  a6 {[%clk 0:02:40]} 16. Bxf6 {[%clk 0:01:25]}  Bxf6 {[%clk 0:02:40]} 17. Nd5 {[%clk 0:01:25]}  Rab8 {[%clk 0:02:26]} 18. Nxf6+ {[%clk 0:01:17]}  exf6 {[%clk 0:02:27]} 19. Rfd1+ {[%clk 0:00:50]}  Ke7 {[%clk 0:02:13]} 20. Re1+ {[%clk 0:00:50]}  Kf8 {[%clk 0:02:09]} 21. Rc7 {[%clk 0:00:51]}  Re8 {[%clk 0:02:07]} 22. Rd1 {[%clk 0:00:50]}  Rbd8 {[%clk 0:02:03]} 23. Rdc1 {[%clk 0:00:50]}  Re7 {[%clk 0:02:01]} 24. h3 {[%clk 0:00:49]}  Rdd7 {[%clk 0:01:59]} 25. R7c3 {[%clk 0:00:40]}  Kg7 {[%clk 0:01:58]} 26. a3 {[%clk 0:00:37]}  f5 {[%clk 0:01:58]} 27. b3 {[%clk 0:00:35]}  h5 {[%clk 0:01:58]} 28. a4 {[%clk 0:00:33]}  Rd2 {[%clk 0:01:57]} 29. Rc7 {[%clk 0:00:21]}  Rdd7 {[%clk 0:01:39]} 30. R7c3 {[%clk 0:00:18]}  Kf6 {[%clk 0:01:39]} 31. a5 {[%clk 0:00:16]}  Re5 {[%clk 0:01:38]} 32. b4 {[%clk 0:00:16]}  Rb5 {[%clk 0:01:36]} 33. Rc4 {[%clk 0:00:16]}  Rd2 {[%clk 0:01:34]} 34. Rb1 {[%clk 0:00:12]}  Ra2 {[%clk 0:01:26]} 35. Rd1 {[%clk 0:00:11]}  Rb2 {[%clk 0:01:18]} 36. Rdd4 {[%clk 0:00:10]}  Re5 {[%clk 0:01:13]} 37. Rd6+ {[%clk 0:00:10]}  Kg7 {[%clk 0:01:13]} 38. Rd7 {[%clk 0:00:05]}  Re1+ {[%clk 0:01:12]} 39. Kh2 {[%clk 0:00:05]}  Rxf2 {[%clk 0:01:06]} 40. Rcc7 {[%clk 0:00:05]}  Ree2 {[%clk 0:00:56]} 41. Rxf7+ {[%clk 0:00:05]}  Kh6 {[%clk 0:00:57]} 42. Rh7+ {[%clk 0:00:04]}  Kg5 {[%clk 0:00:57]} 43. h4+ {[%clk 0:00:01]}  Kxh4 {[%clk 0:00:56]} 44. Rc4+ {[%clk 0:00:02]}  f4 {[%clk 0:00:53]} 45. Rf7 {[%clk 0:00:01]}  Rxg2+ {[%clk 0:00:53]} 46. Kh1 {[%clk 0:00:02]}  Kh3 {[%clk 0:00:45]} 47. Rc3+ {[%clk 0:00:01]}  Rg3 {[%clk 0:00:40]} 0-1


[Site "https://www.chess.com"]